fUST/lending_fUST_20240628
["ID","MTS","AMOUNT","RATE_DAILY","PERIOD"]
[330559211,1719568238960,-151.14338574,0.00030492,7]
[330559212,1719568238970,-31462.9674988,0.00030881,3]
[330559213,1719568238980,-2743.45378905,0.00030893,2]
[330559214,1719568238989,-985.3,0.00030983,3]
[330559215,1719568238999,-56995.27545813,0.00030993,7]
[330559216,1719568239009,-71506.75315068,0.00030993,7]
[330559217,1719568239019,-5000.0,0.00030993,60]
[330559218,1719568239030,-159.92010542,0.00031201,7]
[330559219,1719568239040,-159.92010542,0.00031893,7]
[330559220,1719568239051,-156.69428565,0.00032056,7]
[330559221,1719568239062,-159.92010542,0.00032388,7]
[330559222,1719568239073,-159.92010542,0.00032817,7]
[330559223,1719568239083,-159.92010542,0.00032934,7]
[330559224,1719568239093,-154.89963726,0.0003295,4]
[330559225,1719568239104,-156.69428565,0.00032951,7]
[330559226,1719568239114,-159.50123806,0.00033358,7]
[330559227,1719568239124,-159.92010542,0.0003358,7]
[330559228,1719568239134,-159.92010542,0.00033857,7]
[330559229,1719568239144,-159.92010542,0.00033883,7]
[330559230,1719568239155,-159.92010542,0.00034045,7]
[330559231,1719568239166,-153.0,0.00034242,2]
[330559232,1719568239176,-153.0,0.00034242,2]
[330559233,1719568239186,-153.0,0.00034242,2]
[330559234,1719568239196,-153.0,0.00034242,2]
[330559235,1719568239207,-227.0,0.00034242,2]
[330559236,1719568239217,-227.0,0.00034242,2]
[330559237,1719568239228,-227.0,0.00034242,2]
[330559238,1719568239241,-227.0,0.00034242,2]
[330559239,1719568239252,-227.0,0.00034242,2]
[330559240,1719568239262,-227.0,0.00034242,2]
[330559241,1719568239273,-227.0,0.00034242,2]
[330559242,1719568239285,-227.0,0.00034242,2]
[330559243,1719568239296,-227.0,0.00034242,2]
[330559244,1719568239306,-227.0,0.00034242,2]
[330559245,1719568239317,-227.0,0.00034242,2]
[330559246,1719568239329,-227.0,0.00034242,2]
[330559247,1719568239339,-227.0,0.00034242,2]
[330559248,1719568239349,-227.0,0.00034242,2]
[330559249,1719568239359,-227.0,0.00034242,2]
[330559250,1719568239369,-227.0,0.00034242,2]
[330559251,1719568239379,-227.0,0.00034242,2]
[330559252,1719568239389,-227.0,0.00034242,2]
[330559253,1719568239398,-227.0,0.00034242,2]
[330559254,1719568239408,-227.0,0.00034242,2]
[330559255,1719568239418,-227.0,0.00034242,2]
[330559256,1719568239428,-227.0,0.00034242,2]
[330559257,1719568239438,-227.0,0.00034242,2]
[330559258,1719568239448,-227.0,0.00034242,2]
[330559259,1719568239458,-227.0,0.00034242,2]
[330559260,1719568239467,-227.0,0.00034242,2]
[330559261,1719568239477,-227.0,0.00034242,2]
[330559262,1719568239487,-227.0,0.00034242,2]
[330559263,1719568239498,-227.0,0.00034242,2]
[330559264,1719568239508,-227.0,0.00034242,2]
[330559265,1719568239518,-227.0,0.00034242,2]
[330559266,1719568239528,-227.0,0.00034242,2]
[330559267,1719568239538,-227.0,0.00034242,2]
[330559268,1719568239548,-227.0,0.00034242,2]
[330559269,1719568239558,-227.0,0.00034242,2]
[330559270,1719568239569,-227.0,0.00034242,2]
[330559271,1719568239579,-227.0,0.00034242,2]
[330559272,1719568239588,-227.0,0.00034242,2]
[330559273,1719568239598,-227.0,0.00034242,2]
[330559274,1719568239607,-227.0,0.00034242,2]
[330559275,1719568239617,-227.0,0.00034242,2]
[330559276,1719568239627,-227.0,0.00034242,2]
[330559277,1719568239636,-227.0,0.00034242,2]
[330559278,1719568239646,-227.0,0.00034242,2]
[330559279,1719568239656,-227.0,0.00034242,2]
[330559280,1719568239667,-227.0,0.00034242,2]
[330559281,1719568239676,-227.0,0.00034242,2]
[330559282,1719568239687,-227.0,0.00034242,2]
[330559283,1719568239697,-227.0,0.00034242,2]
[330559284,1719568239706,-227.0,0.00034242,2]
[330559285,1719568239716,-227.0,0.00034242,2]
[330559286,1719568239726,-227.0,0.00034242,2]
[330559287,1719568239736,-227.0,0.00034242,2]
[330559288,1719568239746,-227.0,0.00034242,2]
[330559289,1719568239756,-227.0,0.00034242,2]
[330559290,1719568239766,-227.0,0.00034242,2]
[330559291,1719568239776,-227.0,0.00034242,2]
[330559292,1719568239786,-227.0,0.00034242,2]
[330559293,1719568239796,-227.0,0.00034242,2]
[330559294,1719568239808,-227.0,0.00034242,2]
[330559295,1719568239820,-227.0,0.00034242,2]
[330559296,1719568239830,-227.0,0.00034242,2]
[330559297,1719568239841,-227.0,0.00034242,2]
[330559298,1719568239851,-227.0,0.00034242,2]
[330559299,1719568239862,-227.0,0.00034242,2]
[330559300,1719568239872,-227.0,0.00034242,2]
[330559301,1719568239882,-227.0,0.00034242,2]
[330559302,1719568239891,-227.0,0.00034242,2]
[330559303,1719568239901,-227.0,0.00034242,2]
[330559304,1719568239911,-227.0,0.00034242,2]
[330559305,1719568239921,-227.0,0.00034242,2]
[330559306,1719568239931,-227.0,0.00034242,2]
[330559307,1719568239941,-227.0,0.00034242,2]
[330559308,1719568239952,-227.0,0.00034242,2]
[330559309,1719568239962,-227.0,0.00034242,2]
[330559310,1719568239972,-227.0,0.00034242,2]
[330559311,1719568239982,-227.0,0.00034242,2]
[330559312,1719568239991,-227.0,0.00034242,2]
[330559313,1719568240001,-227.0,0.00034242,2]
[330559315,1719568240010,-227.0,0.00034242,2]
[330559317,1719568240019,-227.0,0.00034242,2]
[330559318,1719568240029,-227.0,0.00034242,2]
[330559320,1719568240039,-227.0,0.00034242,2]
[330559321,1719568240048,-227.0,0.00034242,2]
[330559322,1719568240058,-227.0,0.00034242,2]
[330559323,1719568240068,-227.0,0.00034242,2]
[330559324,1719568240079,-227.0,0.00034242,2]
[330559325,1719568240090,-151.14338574,0.00034406,7]
[330559326,1719568240100,-151.0,0.00034421,7]
[330559327,1719568240110,-192.067704,0.00034421,7]
[330559328,1719568240120,-220.250911,0.00034421,7]
[330559329,1719568240130,-220.250911,0.00034421,7]
[330559330,1719568240141,-2521.48179124,0.00034432,2]
[330559331,1719568240151,-240.656205,0.00034467,7]
[330559332,1719568240161,-151.0,0.00034467,7]
[330559334,1719568240170,-151.0,0.00034472,7]
[330559336,1719568240181,-360.754446,0.00034491,7]
[330559337,1719568240191,-360.754446,0.00034491,7]
[330559339,1719568240201,-151.0,0.00034491,7]
[330559341,1719568240212,-151.14338574,0.00034531,7]
[330559342,1719568240221,-490.54850109,0.00034555,2]
[330559344,1719568240232,-191.7722736,0.00034567,4]
[330559345,1719568240245,-4132.39009814,0.00034592,4]
[330559346,1719568240255,-6732.80338278,0.00034602,4]
[330559347,1719568240265,-2558.74797974,0.00034702,4]
[330559348,1719568240275,-155.03268168,0.00034771,4]
[330559349,1719568240287,-151.14338574,0.00034912,7]
[330559350,1719568240297,-31462.9674988,0.0003499,4]
[330559351,1719568240310,-2862.35585528,0.00034999,4]
[330559352,1719568240320,-5880.04297122,0.00035,15]
[330559353,1719568240330,-500.0,0.00035,4]
[330559355,1719568240339,-2825.49865465,0.00035259,120]
[330559356,1719568240349,-1999.22368425,0.00035292,4]
[330559358,1719568240360,-1765.0477278,0.00035292,4]
[330559359,1719568240369,-159.92010542,0.0003538,7]
[330559361,1719568240379,-159.92010542,0.00035458,7]
[330559363,1719568240389,-155.961253,0.00035545,7]
[330559364,1719568240398,-151.0,0.00035545,7]
[330559366,1719568240408,-360.754446,0.00035545,7]
[330559368,1719568240417,-360.754446,0.00035545,7]
[330559369,1719568240428,-151.0,0.00035545,7]
[330559370,1719568240437,-151.0,0.00035545,7]
[330559371,1719568240446,-151.0,0.00035545,7]
[330559372,1719568240456,-195.151228,0.00035545,7]
[330559373,1719568240465,-220.250911,0.00035545,7]
[330559374,1719568240475,-220.250911,0.00035545,7]
[330559375,1719568240485,-668.319774,0.00035545,7]
[330559376,1719568240495,-668.319774,0.00035545,7]
[330559378,1719568240504,-253.434292,0.00035545,7]
[330559379,1719568240514,-253.434292,0.00035545,7]
[330559381,1719568240523,-62925.9349976,0.00035546,4]
[330559382,1719568240532,-165.49,0.00035555,2]
[330559384,1719568240543,-165.49,0.00035555,2]
[330559386,1719568240552,-165.49,0.00035555,2]
[330559387,1719568240563,-165.49,0.00035555,2]
[330559389,1719568240574,-165.49,0.00035555,2]
[330559390,1719568240585,-88040.39679728,0.00035556,2]
[330559433,1719568246973,-613.8,0.00027184,2]
[330559437,1719568333106,-300.0,0.00027183,2]
[330559438,1719568333129,-233.0,0.00027183,2]
[330559439,1719568333151,-4423.11508975,0.00027184,2]
[330559440,1719568333176,-4398.80443104,0.00027184,2]
[330559441,1719568333197,-3767.28917554,0.00027184,2]
[330559442,1719568333352,-2099.6884772,0.00027184,2]
[330559443,1719568333379,-7393.16959714,0.00027184,2]
[330559444,1719568333400,-154.82195475,0.00027184,2]
[330559445,1719568333421,-230.11127458,0.00027916,2]
[330559447,1719568445164,-9222.08855519,0.00020996,2]
[330559448,1719568445186,-162.437804,0.00021096,2]
[330559449,1719568445207,-500.0,0.00024657,4]
[330559450,1719568445229,-629.2,0.00024657,4]
[330559451,1719568445250,-500.0,0.00024657,4]
[330559452,1719568445271,-500.0,0.00024657,4]
[330559453,1719568445292,-500.0,0.00024657,4]
[330559454,1719568445317,-410.89281927,0.00024657,4]
[330559455,1719568445338,-500.0,0.00024657,4]
[330559456,1719568445365,-500.0,0.00024657,4]
[330559457,1719568445388,-610.16,0.00024657,4]
[330559458,1719568445409,-670.84,0.00024657,4]
[330559459,1719568445430,-1417.04,0.00024657,4]
[330559460,1719568445451,-3217.35,0.00024657,4]
[330559461,1719568445470,-610.09,0.00024657,4]
[330559462,1719568445492,-525.76580305,0.00024657,4]
[330559463,1719568445512,-500.0,0.00024657,4]
[330559464,1719568445533,-500.0,0.00024657,4]
[330559465,1719568445552,-224.13501849,0.00024657,4]
[330559466,1719568564075,-275.86498151,0.00024657,4]
[330559467,1719568564100,-500.0,0.00024657,4]
[330559468,1719568564123,-500.0,0.00024657,4]
[330559469,1719568564147,-1175.67,0.00024657,4]
[330559470,1719568564171,-500.0,0.00024657,4]
[330559471,1719568564194,-867.31,0.00024657,4]
[330559472,1719568564216,-500.0,0.00024657,4]
[330559473,1719568564239,-500.0,0.00024657,4]
[330559474,1719568564262,-500.0,0.00024657,4]
[330559475,1719568564285,-10897.49,0.00024657,4]
[330559476,1719568564310,-500.0,0.00024657,4]
[330559477,1719568564334,-500.0,0.00024657,4]
[330559478,1719568564367,-674.61,0.00024657,4]
[330559479,1719568564390,-305.00000024,0.00024657,4]
[330559480,1719568564416,-500.0,0.00024657,4]
[330559481,1719568564441,-500.0,0.00024657,4]
[330559482,1719568564463,-1099.27,0.00024657,4]
[330559483,1719568564486,-500.0,0.00024657,4]
[330559484,1719568564508,-6729.38,0.00024657,4]
[330559485,1719568564531,-3686.78,0.00024657,4]
[330559486,1719568564553,-629.06,0.00024657,4]
[330559487,1719568564575,-500.0,0.00024657,4]
[330559488,1719568564600,-500.0,0.00024657,4]
[330559489,1719568564622,-654.57,0.00024657,4]
[330559490,1719568564645,-500.0,0.00024657,4]
[330559491,1719568564667,-500.0,0.00024657,4]
[330559492,1719568564690,-500.0,0.00024657,4]
[330559493,1719568564712,-500.0,0.00024657,4]
[330559494,1719568564734,-4771.94,0.00024657,4]
[330559495,1719568564757,-500.0,0.00024931,4]
[330559496,1719568564780,-629.2,0.00024931,4]
[330559497,1719568564802,-500.0,0.00024931,4]
[330559498,1719568564825,-500.0,0.00024931,4]
[330559499,1719568564848,-500.0,0.00024931,4]
[330559500,1719568564870,-500.0,0.00024931,4]
[330559501,1719568564893,-500.0,0.00024931,4]
[330559502,1719568564915,-610.16,0.00024931,4]
[330559503,1719568564938,-670.84,0.00024931,4]
[330559504,1719568564966,-1417.04,0.00024931,4]
[330559505,1719568564991,-3217.35,0.00024931,4]
[330559506,1719568565014,-610.09,0.00024931,4]
[330559507,1719568565036,-500.0,0.00024931,4]
[330559508,1719568565060,-196.22059825,0.00024931,4]
[330559509,1719568565084,-571.40819116,0.00024931,4]
[330559510,1719568565109,-500.0,0.00024931,4]
[330559511,1719568565132,-392.73105095,0.00024931,4]
[330559512,1719568565155,-1175.67,0.00024931,4]
[330559513,1719568565178,-500.0,0.00024931,4]
[330559514,1719568565200,-867.31,0.00024931,4]
[330559515,1719568565222,-500.0,0.00024931,4]
[330559516,1719568565244,-500.0,0.00024931,4]
[330559517,1719568565267,-500.0,0.00024931,4]
[330559518,1719568565290,-10897.49,0.00024931,4]
[330559519,1719568565313,-500.0,0.00024931,4]
[330559520,1719568565336,-674.61,0.00024931,4]
[330559521,1719568565361,-500.0,0.00024931,4]
[330559522,1719568565384,-348.23890651,0.00024931,4]
[330559523,1719568565407,-1099.27,0.00024931,4]
[330559524,1719568565432,-500.0,0.00024931,4]
[330559525,1719568565457,-6729.38,0.00024931,4]
[330559526,1719568565481,-3686.78,0.00024931,4]
[330559527,1719568565504,-629.06,0.00024931,4]
[330559528,1719568565545,-500.0,0.00024931,4]
[330559529,1719568565595,-500.0,0.00024931,4]
[330559530,1719568565669,-654.57,0.00024931,4]
[330559531,1719568565708,-500.0,0.00024931,4]
[330559532,1719568565731,-500.0,0.00024931,4]
[330559533,1719568565753,-500.0,0.00024931,4]
[330559534,1719568565777,-3032.20618943,0.00024931,4]
[330559535,1719568570823,-1739.73381057,0.00024931,4]
[330559536,1719568571317,500.0,0.00024657,4]
[330559537,1719568572770,500.0,0.00024931,4]
[330559538,1719568575483,602.81,0.00024657,4]
[330559539,1719568575764,602.81,0.00024931,4]
[330559540,1719568587202,9220.95,0.00024657,4]
[330559541,1719568587514,9220.95,0.00024931,4]
[330559542,1719568590826,535.4224069,0.00024657,4]
[330559543,1719568594314,500.0,0.00024657,4]
[330559544,1719568594754,500.0,0.00024931,4]
[330559545,1719568599018,500.0,0.00024657,4]
[330559546,1719568599302,500.0,0.00024931,4]
[330559547,1719568605216,540.7,0.00024657,4]
[330559548,1719568605764,540.7,0.00024931,4]
[330559549,1719568607913,500.0,0.00024657,4]
[330559550,1719568608169,500.0,0.00024931,4]
[330559551,1719569244150,-266.9782265,0.00016255,2]
[330559552,1719569264943,6976.32251601,0.00014998,2]
[330559555,1719569343082,-640.79743299,0.00016255,2]
[330559556,1719569343132,-640.79743299,0.00016255,2]
[330559557,1719569343188,-308.7256963,0.00016255,2]
[330559558,1719569345161,-8252.9005,0.00016255,2]
[330559559,1719569354100,-1946.59687572,0.00016255,2]
[330559560,1719569354123,-42201.76063344,0.00016255,2]
[330559561,1719569354144,-17236.27288962,0.00016255,2]
[330559562,1719569354166,-155.03268168,0.00018179,2]
[330559563,1719569354189,-154.82195475,0.00019165,2]
[330559564,1719569354210,-224.77989795,0.00019178,2]
[330559565,1719569354232,-500.0,0.00019178,2]
[330559566,1719569354252,-490.65106447,0.00019178,2]
[330559567,1719569354275,-14741.85497284,0.0002075,2]
[330559568,1719569359239,163.738245,0.00014998,2]
[330559569,1719569359263,663.13570375,0.00014998,2]
[330559570,1719569374634,587.7182223,0.00014998,2]
[330559607,1719569433027,-154.82195475,0.00016255,2]
[330559609,1719569433041,-136.48367245,0.00016255,2]
[330559682,1719569438658,-6905.31971033,0.00016255,2]
[330559683,1719569438667,-4556.30947534,0.00016255,2]
[330559684,1719569438677,-154.82195475,0.00016255,2]
[330559685,1719569438690,-3925.7164855,0.00019164,2]
[330559686,1719569438700,-571.06955151,0.00019703,2]
[330559687,1719569438709,-154.82195475,0.00019703,2]
[330559688,1719569438719,-17229.24165736,0.00019703,2]
[330559689,1719569438728,-10158.14502716,0.0002075,2]
[330559690,1719569438738,-199.7558762,0.00020923,2]
[330559691,1719569438747,-1619.302266,0.00020956,2]
[330559692,1719569438757,-5215.44458624,0.00020995,2]
[330559693,1719569438765,-247.04477858,0.00021095,2]
[330559694,1719569438775,-167.5961549,0.00021096,2]
[330559695,1719569438784,-2791.217254,0.00021354,2]
[330559696,1719569438793,-499.9888163,0.00021549,2]
[330559697,1719569438803,-787.66025271,0.0002184,2]
[330559698,1719569438812,-3000.0,0.00021855,2]
[330559699,1719569438822,-5215.44458621,0.00021883,2]
[330559700,1719569438831,-524.67444519,0.0002243,2]
[330559701,1719569438841,-5215.44458621,0.00022771,2]
[330559702,1719569438850,-168.29605558,0.00022831,2]
[330559703,1719569438860,-628.38301264,0.00022932,2]
[330559704,1719569438870,-3075.6789159,0.00022941,2]
[330559705,1719569438880,-3075.6789159,0.00022941,2]
[330559706,1719569438889,-2130.41057228,0.00022942,2]
[330559707,1719569438898,-2130.41057228,0.00022942,2]
[330559708,1719569438907,-1487.99362785,0.00022942,2]
[330559709,1719569438916,-31812.0846705,0.00023155,2]
[330559710,1719569438925,-190.71173259,0.00023625,2]
[330559711,1719569438934,-5215.44458621,0.00023659,2]
[330559712,1719569438943,-163.738245,0.00023725,2]
[330559713,1719569438952,-620.41915063,0.00024079,2]
[330559714,1719569438962,-787.95,0.0002447,3]
[330559715,1719569438971,-2124.49069545,0.0002448,2]
[330559716,1719569438980,-1313.69980883,0.0002448,2]
[330559717,1719569438989,-84573.41334162,0.00024646,7]
[330559718,1719569439000,-63624.169341,0.00024647,2]
[330559719,1719569439010,-95436.2540116,0.00024647,2]
[330559720,1719569439019,-500.0,0.00024657,2]
[330559721,1719569439029,-505.46171266,0.00024657,4]
[330559722,1719569439039,-782.99,0.00024657,4]
[330559723,1719569439049,-528.3593317,0.00024657,4]
[330559724,1719569439060,-500.0,0.00024657,4]
[330559725,1719569439070,-500.0,0.00024657,4]
[330559726,1719569439080,-500.0,0.00024657,4]
[330559727,1719569439090,-447.90601301,0.00024657,4]
[330559728,1719569439100,-500.0,0.00024657,4]
[330559729,1719569439110,-500.0,0.00024657,4]
[330559730,1719569439120,-500.0,0.00024657,4]
[330559731,1719569439129,-500.0,0.00024657,4]
[330559732,1719569439139,-500.0,0.00024657,4]
[330559733,1719569439149,-500.0,0.00024657,4]
[330559734,1719569439159,-500.0,0.00024657,4]
[330559735,1719569439169,-500.0,0.00024657,4]
[330559736,1719569439179,-921.11,0.00024657,4]
[330559737,1719569439189,-573.16,0.00024657,4]
[330559738,1719569439199,-500.0,0.00024657,4]
[330559739,1719569439209,-500.0,0.00024657,4]
[330559740,1719569439219,-500.0,0.00024657,4]
[330559741,1719569439229,-564.66,0.00024657,4]
[330559742,1719569439239,-500.0,0.00024657,4]
[330559743,1719569439248,-500.0,0.00024657,4]
[330559744,1719569439258,-1026.35,0.00024657,4]
[330559745,1719569439268,-500.0,0.00024657,4]
[330559746,1719569439278,-500.0,0.00024657,2]
[330559747,1719569439288,-183.85556637,0.00024657,4]
[330559748,1719569439297,-500.0,0.00024657,4]
[330559749,1719569439307,-288.63369975,0.00024657,4]
[330559750,1719569439317,-1215.33,0.00024657,4]
[330559751,1719569439327,-500.12892507,0.00024657,4]
[330559752,1719569439337,-569.35,0.00024657,4]
[330559753,1719569439347,-498.20327389,0.00024657,4]
[330559754,1719569439357,-500.0,0.00024657,4]
[330559755,1719569439367,-500.0,0.00024657,4]
[330559756,1719569439376,-500.0,0.00024657,4]
[330559757,1719569439386,-500.0,0.00024657,4]
[330559758,1719569439395,-500.0,0.00024657,4]
[330559759,1719569439406,-500.0,0.00024657,4]
[330559760,1719569439416,-500.0,0.00024657,4]
[330559761,1719569439427,-500.0,0.00024657,4]
[330559762,1719569439437,-660.14,0.00024657,4]
[330559763,1719569439447,-500.0,0.00024657,4]
[330559764,1719569439458,-500.0,0.00024657,4]
[330559765,1719569439467,-862.37,0.00024657,4]
[330559766,1719569439476,-500.0,0.00024657,4]
[330559767,1719569439486,-655.29,0.00024657,4]
[330559768,1719569439496,-500.0,0.00024657,2]
[330559769,1719569439505,-500.0,0.00024657,4]
[330559770,1719569439515,-500.0,0.00024657,4]
[330559771,1719569439524,-500.0,0.00024657,4]
[330559772,1719569439534,-500.0,0.00024657,4]
[330559773,1719569439543,-500.0,0.00024657,4]
[330559774,1719569439555,-500.0,0.00024657,4]
[330559775,1719569439564,-500.0,0.00024657,4]
[330559776,1719569439574,-500.0,0.00024657,4]
[330559777,1719569439584,-607.6624901,0.00024657,4]
[330559778,1719569439594,-798.43,0.00024657,4]
[330559779,1719569439608,-500.0,0.00024657,4]
[330559780,1719569439618,-500.0,0.00024657,4]
[330559781,1719569439628,-1641.59,0.00024657,4]
[330559782,1719569439638,-509.91893683,0.00024657,4]
[330559783,1719569439650,-711.99,0.00024657,4]
[330559784,1719569439660,-500.0,0.00024657,4]
[330559785,1719569439670,-500.0,0.00024657,4]
[330559786,1719569439679,-832.09,0.00024657,4]
[330559787,1719569439690,-500.0,0.00024657,4]
[330559788,1719569439700,-2404.56,0.00024657,4]
[330559789,1719569439710,-500.0,0.00024657,4]
[330559790,1719569439720,-500.0,0.00024657,4]
[330559791,1719569439730,-500.0,0.00024657,4]
[330559792,1719569439740,-838.99,0.00024657,2]
[330559793,1719569439750,-973.95,0.00024657,4]
[330559794,1719569439760,-500.0,0.00024657,4]
[330559795,1719569439771,-500.0,0.00024657,4]
[330559796,1719569439781,-2202.57,0.00024657,4]
[330559797,1719569439790,-500.0,0.00024657,4]
[330559798,1719569439802,-500.0,0.00024657,4]
[330559799,1719569439812,-500.0,0.00024657,4]
[330559800,1719569439822,-500.0,0.00024657,4]
[330559801,1719569439831,-500.0,0.00024657,4]
[330559802,1719569439841,-500.0,0.00024657,4]
[330559803,1719569439850,-659.7,0.00024657,4]
[330559804,1719569439860,-3575.7,0.00024657,4]
[330559805,1719569439869,-500.0,0.00024657,4]
[330559806,1719569439878,-500.0,0.00024657,4]
[330559807,1719569439888,-580.02861449,0.00024657,4]
[330559808,1719569439898,-500.0,0.00024657,4]
[330559809,1719569439908,-955.38,0.00024657,4]
[330559810,1719569439917,-629.44,0.00024657,4]
[330559811,1719569439927,-641.63,0.00024657,4]
[330559812,1719569439937,-588.83,0.00024657,4]
[330559813,1719569439947,-500.0,0.00024657,4]
[330559814,1719569439957,-541.6,0.00024657,4]
[330559815,1719569439967,-500.0,0.00024657,4]
[330559816,1719569439976,-500.0,0.00024657,4]
[330559817,1719569439985,-565.7181646,0.00024657,4]
[330559818,1719569439995,-500.0,0.00024657,4]
[330559819,1719569440004,-487.43673657,0.00024657,4]
[330559820,1719569440014,-500.0,0.00024657,4]
[330559821,1719569440024,-1185.2,0.00024657,4]
[330559822,1719569440034,-500.0,0.00024657,4]
[330559823,1719569440044,-500.0,0.00024657,4]
[330559824,1719569440053,-853.85,0.00024657,4]
[330559825,1719569440063,-500.0,0.00024657,4]
[330559826,1719569440073,-500.0,0.00024657,4]
[330559827,1719569440082,-585.32,0.00024657,4]
[330559828,1719569440091,-161.0972318,0.00024657,4]
[330559829,1719569440101,-500.0,0.00024657,4]
[330559830,1719569440110,-291.50816455,0.00024657,4]
[330559831,1719569440119,-500.0,0.00024657,4]
[330559832,1719569440129,-500.0,0.00024657,4]
[330559833,1719569440139,-500.0,0.00024657,4]
[330559834,1719569440148,-500.0,0.00024657,4]
[330559835,1719569440158,-500.0,0.00024657,4]
[330559836,1719569440168,-508.7,0.00024657,4]
[330559837,1719569440177,-500.0,0.00024657,4]
[330559838,1719569440186,-500.0,0.00024657,4]
[330559839,1719569440196,-26347.87496515,0.00024657,4]
[330559860,1719569440927,-2181.80138934,0.00019164,2]
[330559861,1719569440998,-646.46685723,0.00019164,2]
[330559862,1719569441007,-5215.44458621,0.00024547,2]
[330559863,1719569441016,-11002.62503485,0.00024657,4]
[330559864,1719569441025,-569.68790878,0.00024657,4]
[330559865,1719569441034,-2844.79,0.00024657,4]
[330559866,1719569441044,-500.14,0.00024657,4]
[330559867,1719569441054,-500.0,0.00024657,4]
[330559868,1719569441063,-3128.04,0.00024657,4]
[330559869,1719569441073,-500.0,0.00024657,4]
[330559870,1719569441082,-524.31,0.00024657,4]
[330559871,1719569441091,-2057.64070592,0.00024657,4]
[330559872,1719569441113,-3297.97929408,0.00024657,4]
[330559873,1719569441123,-589.11,0.00024657,4]
[330559874,1719569441132,-8697.91809206,0.00024657,4]
[330559875,1719569441143,-117.69190794,0.00024657,4]
[330559876,1719569441152,-7610.11,0.00024657,4]
[330559877,1719569441161,-500.0,0.00024657,4]
[330559878,1719569441171,-500.0,0.00024657,4]
[330559879,1719569441180,-943.59,0.00024657,4]
[330559880,1719569441189,-500.0,0.00024657,4]
[330559881,1719569441198,-557.3,0.00024657,4]
[330559882,1719569441207,-500.0,0.00024657,4]
[330559883,1719569441216,-500.0,0.00024657,4]
[330559884,1719569441225,-342.81625104,0.00024657,4]
[330559896,1719569443713,-157.18374896,0.00024657,4]
[330559897,1719569443722,-179.57756014,0.00024657,4]
[330559898,1719569444432,-492.29243986,0.00024657,4]
[330559899,1719569444441,-1361.7,0.00024657,4]
[330559900,1719569444451,-503.08479286,0.00024657,4]
[330559901,1719569444460,-500.0,0.00024657,4]
[330559902,1719569444470,-3052.15,0.00024657,4]
[330559903,1719569444479,-504.5532611,0.00024657,4]
[330559904,1719569444489,-500.0,0.00024657,4]
[330559905,1719569444498,-500.0,0.00024657,4]
[330559906,1719569444507,-500.0,0.00024657,4]
[330559907,1719569444517,-500.0,0.00024657,4]
[330559908,1719569444527,-774.07,0.00024657,4]
[330559909,1719569444536,-573.08,0.00024657,4]
[330559910,1719569444547,-986.84,0.00024657,4]
[330559911,1719569444556,-1125.08,0.00024657,4]
[330559912,1719569444565,-2236.94,0.00024657,4]
[330559913,1719569444573,-500.0,0.00024657,4]
[330559914,1719569444582,-795.03,0.00024657,4]
[330559915,1719569444591,-1896.3,0.00024657,4]
[330559916,1719569444602,-637.71,0.00024657,4]
[330559917,1719569444615,-500.0,0.00024657,4]